{"text_format":"1","workbook":"xlsx","n_sheets":9,"sheets":["POŽAR.1.","STR 2.","RAČUNALNIKI 3.","VLOMSKO ZAVAROVANJE  4.","ODG 5.","POKLICNA ODG. 6","VOZILA 7.","REKAPITULACIJA","Sheet2"],"not_rendered":{"charts":0,"images":0,"macros":0,"external_links":0,"defined_names":0,"comments":0,"pivot_tables":0},"unopened":[],"bounds":{"document_bytes":16777216,"sheet_cells":100000,"rows_first":2000,"rows_last":500,"rows_between":2000,"halvings":0,"cell_chars":16384,"cell_head_chars":4096},"cells_cut":0,"cells_raw":0,"read":"whole","date_system":"1900"}

{"sheet":"POŽAR.1.","index":0,"n_rows":31,"n_cols":14,"rows_kept":31,"cut":false,"hidden":false,"merged":[[4,1,4,2],[7,13,24,13],[7,12,15,12],[16,12,23,12],[16,6,23,6],[16,7,23,7],[16,8,23,8],[16,9,23,9],[16,10,23,10],[7,1,15,1],[16,1,23,1],[7,4,14,4],[16,4,23,4],[7,11,24,11]]}
[null,"ČISTA NARAVA d.o.o."]
[null,"TEŠANOVCI 20"]
[null,"9226 MORAVSKE TOPLICE"]
[]
[null,"1.POŽARNO ZAVAROVANJE "]
[]
[null,"PREDMET ZAVAROVANJA","LOKACIJA","OPOMBA","ZAVAROVANE NEVARNOSTI","ZAVAROVALNA VSOTA V EUR","IZLIV VODE NA I.RIZIKO ZA OBJEKTE, OPREMO IN DI","UDAREC NEZNANEGA VOZILA V OGRAJO NA 1. R.","POPLAVA, HUDOURNIK IN TALNA VODA NA I.RIZIKO ZA OBJEKTE, OPREMO IN DI","METEORNA VODA, ZMRZAL, ŽLED  I.RIZIKO ZA OBJEKTE, OPREMO IN DI","OBJESTNA DEJANA NA GR. OBJEKTIH NA 1. RIZIKO","NAČIN ZAVAROVANJA","LETNA PREMIJA V EUR","SPLOŠNI IN DOPOLNILNI POGOJI TER KLAVZULE ZAVAROVALNICE"]
[null,"GRADBENI OBJEKTI ","TEŠANOVCI 20","OBJEKTI   1.GR.KAT.DO 2.ETAŽ","TEMELJNE NEVARNOSTI ",199028,5000,"/",3000,3000,1000,"NA DOGOVORJENO VREDNOST",0]
[null,null,"PROSENJAKOVCI","OBJEKTI   1.GR.KAT.DO 3.ETAŽ - STANOVANJE",null,13353,5000,"/","/","/",1000]
[null,null,"BOGOJINA","ČISTILNA NAPRAVA",null,303229,5000,2000,"/","/",1000]
[null,null,"IVANCI","ČISTILNA NAPRAVA",null,137569,5000,2000,"/","/",1000]
[null,null,"LUKAČEVCI","ČISTILNA NAPRAVA",null,1011587,5000,2000,3000,3000,1000]
[null,null,"FILOVCI","ČISTILNA NAPRAVA IN KANALIZACIJSKI VODI",null,1338827,5000,2000,"/","/",1000]
[null,null,"TEŠANOVCI ","ČISTILNA NAPRAVA",null,149016,5000,2000,"/","/",1000]
[null,null,"ČISTILNE NAPRAVE","OGRAJE NA 5-IH ČISTILNIH NAPRAVAH",null,50000,"/","/","/","/",1000]
[null,null,"TEŠANOVCI 20","ŠOTOR","TEMELJNE NEVARNOSTI Z VKLJUČENIM JAMSTVOM ZA VIHAR",16690,"/","/","/","/",1000]
[null,"OPREMA","TEŠANOVCI 20","VSA OPREMA ","TEMELJNE NEVARNOSTI ",156834,"/","/","/","/","/",null,0]
[null,null,"BOGOJINA","OPREMA NA  ČISTILNI NAPRAVI BOGOJINA + 2 ČRPALIŠČI",null,98424]
[null,null,"IVANCI","ČISTILNA NAPRAVA",null,16110]
[null,null,"LUKAČEVCI","ČISTILNA NAPRAVA LUKAČEVCI + 8 ČRPALIŠČ",null,262779]
[null,null,"FILOVCI","ČISTILNA NAPRAVA FILOVCI + 4 ČRPALIŠČA",null,151689]
[null,null,"MARTJANCI","ČRPALIŠČE",null,7455]
[null,null,"SEBEBORCI","4 ČRPALIŠČA SEBEBORCI",null,56477]
[null,null,"TEŠANOVCI ","ČISTILNA NAPRAVA",null,72216]
[null,"DROBNI INVENTAR","TEŠANOVCI 20","DROBNI INVENTAR PO NAVEDENIH LOKACIJAH","TEMELJNE NEVARNOSTI ",25366.65,"/","/","/","/","/",null,0]
[]
[null,null,null,null,null,null,null,null,null,null,"SKUPAJ PREMIJA ",null,{"$f":"SUM(M8:M25)","v":0}]
[null,null,null,null,null,null,null,null,null,null,"POPUST "]
[null,null,null,null,null,null,null,null,null,null,"PREMIJA",null,{"$f":"M27-M28","v":0}]
[null,null,null,null,null,null,null,null,null,null,"8,5% DPZP",null,{"$f":"M29*0.085","v":0}]
[null,null,null,null,null,null,null,null,null,null,"PREMIJA Z DPZP",null,{"$f":"M29*1.085","v":0}]

{"sheet":"STR 2.","index":1,"n_rows":21,"n_cols":9,"rows_kept":21,"cut":false,"hidden":false,"merged":[[7,8,14,8],[7,6,14,6]]}
[null,"ČISTA NARAVA D.O.O."]
[null,"TEŠANOVCI 20"]
[null,"9226 MORAVSKE TOPLICE"]
[]
[null,"2. STROJELOMNO ZAVAROVANJE"]
[]
[null,"PREDMET ZAVAROVANJA   ","VSI STROJI, ELEKTROSTROJNE NAPRAVE, APARATI, INSTALACIJE IN KOVINSKE KONSTRUKCIJE                              ZAVAROVALNA VSOTA V EUR","MEHANSKA OPREMA  ( INSTALACIJE, AVTOMATIKA, DVIGALA,  KLIMATSKE NAPRAVE,  IPD.) ZAVAROVALNA VSOTA V EUR","AMORTIZIRANE VREDNOST ZAVAROVANA","ODBITNA FRANŠIZA ZAVAROVANA","NAČIN ZAVAROVANJA","LETNA PREMIJA","SPLOŠNI IN DOPOLNILNI POGOJI TER KLAVZULE ZAVAROVALNICE"]
[null,"OPREMA - RAZEN TISTE NA ČISTILNIH NAPRAVAH",148434,7961,"DA","DA","NA DOGOVORJENO VREDNOST",0]
[null,"OPREMA NA  ČISTILNI NAPRAVI BOGOJINA + 2 ČRPALIŠČI",98424,15161,"DA","DA",null,0]
[null,"OPREMA NA   ČISTILNI NAPRAVI IVANCI",16110,6878,"DA","DA",null,0]
[null,"OPREMA NA  ČISTILNI NAPRAVI LUKAČEVCI + 8 ČRPALIŠČ",256892,50579,"DA","DA",null,0]
[null,"OPREMA NA  ČISTILNI NAPRAVI FILOVCI + 4 ČRPALIŠČA",151689,66941,"DA","DA",null,0]
[null,"OPREMA ČRPALIŠČE MARTJANCI",7455,null,null,null,null,0]
[null,"OPREMA 4 ČRPALIŠČA SEBEBORCI",56477,null,null,null,null,0]
[null,"OPREMA NA ČISTILNI NAPRAVI TEŠANOVCI ",72216,7451,"DA","DA",null,0]
[null,null,null,null,null,null,null," "]
[null,null,null,null,null,null,null,"SKUPAJ PREMIJA ",{"$f":"SUM(H8:H15)","v":0}]
[null,null,null,null,null,null,null,"POPUST "]
[null,null,null,null,null,null,null,"PREMIJA",{"$f":"I17-I18","v":0}]
[null,null,null,null,null,null,null,"8,5% DPZP",{"$f":"I19*0.085","v":0}]
[null,null,null,null,null,null,null,"PREMIJA Z DPZP",{"$f":"I19*1.085","v":0}]

{"sheet":"RAČUNALNIKI 3.","index":2,"n_rows":16,"n_cols":8,"rows_kept":16,"cut":false,"hidden":false,"merged":[[5,1,5,2]]}
[null,"ČISTA NARAVA D.O.O."]
[null,"TEŠANOVCI 20"]
[null,"9226 MORAVSKE TOPLICE"]
[]
[]
[null,"3. ZAVAROVANJE RAČUNALNIKOV "]
[]
[null,"PREDMET ZAVAROVANJA","ZAVAROVALNA VSOTA V EUR","NAČIN ZAVAROVANJA","AMORTIZIRANE VREDNOST ZAVAROVANA","ODBITNA FRANŠIZA ZAVAROVANA","LETNA PREMIJA  V EUR","SPLOŠNI IN DOPOLNILNI POGOJI TER KLAVZULE ZAVAROVALNICE"]
[null,"RAČUNALNIKI S PRIPADAJOČO OPREMO ",28847.66,"NA DOGOVORJENO VREDNOST","DA","DA",0]
[]
[]
[null,null,null,null,null,null,"SKUPAJ PREMIJA ",{"$f":"G9","v":0}]
[null,null,null,null,null,null,"POPUST "]
[null,null,null,null,null,null,"PREMIJA",{"$f":"H12-H13","v":0}]
[null,null,null,null,null,null,"8,5% DPZP",{"$f":"H14*0.085","v":0}]
[null,null,null,null,null,null,"PREMIJA Z DPZP",{"$f":"H14*1.085","v":0}]

{"sheet":"VLOMSKO ZAVAROVANJE  4.","index":3,"n_rows":16,"n_cols":8,"rows_kept":16,"cut":false,"hidden":false,"merged":[]}
[null,"ČISTA NARAVA D.O.O."]
[null,"TEŠANOVCI 20"]
[null,"9226 MORAVSKE TOPLICE"]
[]
[]
[null,"4. VLOMSKO ZAVAROVANJE "]
[]
[]
[null,"VRSTA ZAVAROVANJA","LOKACIJA","OPREMA S STROJI IN APARATI TER DROBNI INVENTAR - ZAVAROVALNA VSOTA V EUR","ZALOGE                                                     ZAVAROVALNA VSOTA V EUR  ","GOTOVINA IN DRUGE VREDNOSTNE STVARI MED MANIPULACIJO, PRENOSOM, Z DOZAVAROVANJEM PROMETNE NESREČE","LETNA PREMIJA      V EUR","SPLOŠNI IN DOPOLNILNI POGOJI TER KLAVZULE ZAVAROVALNICE"]
[null,"VLOMSKO ZAVAROVANJE NA 1. RIZIKO DO NAVEDENI ZNESKOV","TEŠANOVCI 20",10000,5000,2500,0]
[]
[null,null,null,null,null,null,"SKUPAJ PREMIJA ",{"$f":"G10","v":0}]
[null,null,null,null,null,null,"POPUST "]
[null,null,null,null,null,null,"PREMIJA",{"$f":"H12-H13","v":0}]
[null,null,null,null,null,null,"8,5% DPZP",{"$f":"H14*0.085","v":0}]
[null,null,null,null,null,null,"PREMIJA Z DPZP",{"$f":"H14*1.085","v":0}]

{"sheet":"ODG 5.","index":4,"n_rows":16,"n_cols":10,"rows_kept":16,"cut":false,"hidden":false,"merged":[[14,1,14,2],[13,1,13,2],[12,1,12,2]]}
[null,"ČISTA NARAVA D.O.O."]
[null,"TEŠANOVCI 20"]
[null,"9226 MORAVSKE TOPLICE"]
[]
[]
[null,"5. ZAVAROVANJE ODGOVORNOSTI"]
[]
[null,"PREDMET ZAVAROVANJA"," VKLJUČENI ZAHTEVKI LASTNIH  ZAPOSLENIH","ZAVAROVALNE VSOTE V EUR :             a) OSEBE                                       b) STVARI","ŠTEVILO ZAPOSLENIH","FRANŠIZA ZAVAROVANA","OBMOČJE JAMSTVA","LETNA PREMIJA V EUR","SPLOŠNI IN DOPOLNILNI POGOJI TER KLAVZULE ZAVAROVALNICE"]
[null,"ODGOVORNOST IZ DEJAVNOSTI, LASTNOSTI IN PRAVNEGA RAZMERJA","DA","a) 99.000                                       b) 25.000",40,"DA","REPUBLIKA SLOVENIJA",0]
[]
[]
[null,"* POSEBNI NEVARNOSTNI VIRI:",null,null,null,null,"SKUPAJ PREMIJA ",{"$f":"H9","v":0},null,5]
[null,"_CESTE V UPRAVLJANJU - 221 KM",null,null,null,null,"POPUST "]
[null,"_POVRŠINA JAVNIH POVRŠIN V UPRAVLJANJU : 8,07 ha",null,null,null,null,"PREMIJA",{"$f":"H12-H13","v":0}]
[null,"_KANALIZCIJSKO OMREŽJE V UPRAVLJANJU: KM 66 ",null,null,null,null,"8,5% DPZP",{"$f":"H14*0.085","v":0}]
[null,null,null,null,null,null,"PREMIJA Z DPZP",{"$f":"H14*1.085","v":0}]

{"sheet":"POKLICNA ODG. 6","index":5,"n_rows":15,"n_cols":8,"rows_kept":15,"cut":false,"hidden":false,"merged":[[5,1,5,4]]}
[null,"ČISTA NARAVA D.O.O."]
[null,"TEŠANOVCI 20"]
[null,"9226 MORAVSKE TOPLICE"]
[]
[]
[null,"6. ZAVAROVANJE POKLICNE ODGOVORNOSTI IZ ARHITEKTURNE IN INŽENIRSKE DEJAVNOSTI"]
[]
[null,"PREDMET ZAVAROVANJA","ZAVAROVALNA VSOTA V EUR","ŠTEVILO OSEB","FRANŠIZA ZAVAROVANA - 500EUR","OBMOČJE JAMSTVA","LETNA PREMIJA V EUR","SPLOŠNI IN DOPOLNILNI POGOJI TER KLAVZULE ZAVAROVALNICE"]
[null,"ZAVAROVANJE POKLICNE ODGOVORNOSTI IZ ARHITEKTURNE IN INŽENIRSKE DEJAVNOSTI",50000,3,"NE","REPUBLIKA SLOVENIJA",0]
[]
[null,"FRANŠIZA 10% OD ODŠKODNINE; MIN. 500€",null,null,null,null,"SKUPAJ PREMIJA ",{"$f":"G9","v":0}]
[null,"LETNI AGREGAT JE ENKRATNIK ZAVAROVALNE VSOTE.",null,null,null,null,"POPUST "]
[null,"KRITJE JE PODROČJE REPUBLIKE SLOVENIJE. ",null,null,null,null,"PREMIJA",{"$f":"H11-H12","v":0}]
[null,null,null,null,null,null,"8,5% DPZP",{"$f":"H13*0.085","v":0}]
[null,null,null,null,null,null,"PREMIJA Z DPZP",{"$f":"H13*1.085","v":0}]

{"sheet":"VOZILA 7.","index":6,"n_rows":57,"n_cols":11,"rows_kept":57,"cut":false,"hidden":false,"merged":[[5,6,6,6],[27,10,28,10],[30,1,30,10],[31,10,33,10],[34,1,34,10],[7,1,7,2],[8,1,8,10],[12,1,12,10],[26,1,26,10],[9,10,10,10],[13,10,25,10],[5,1,5,2]]}
[null,"ČISTA NARAVA  d.o.o."]
[null,"TEŠANOVCI 20"]
[null,"9226 MORAVSKE TOPLICE"]
[]
[]
[null,"7. ZAVAROVANJE VOZIL "]
[]
[null,"VOZILO",null,"ZAVAROAVANJE AVTOMOBILSKE ODGOVORNOSTI","ZAVAROVANJE VOZNIKA ZA ŠKODO ZARADI TELESNIH POŠKODB (AO-PLUS)","PREMIJSKI RAZRED             AO","AVTOMOBILSKI KASKO                                 0% ODBITNA  FRANŠIZA","PREMIJSKI RAZRED           KASKO","DELNI KASKO         KOMBINACIJE","LETNA PREMIJA V EUR","POGOJI ZAVAROVALNICE ZA KASKO, AO IN AO+, PRAVNO ZAŠČITO IN NEZG.ZAVAROVANJE"]
[null,"OSEBNA VOZILA"]
[null,1,"MS*DT-119;  DACIA SANDERO, LETNIK 2015; ŠTEV.ŠASIJE: UU15SDAAC52189129; 66KW; 898 CCM; NOSILNOST: 452 kg; NOSILNOST: 514 kg; REG.M.5; ZV: 10.519 Z DDV","ZAKONSKO PREDPISANE ZAVAROVALNE VSOTE","ZAVAROVALNA VSOTA                51.000€                  ",9,"DA",9,"1,2,3,4,5,6,7,8",0]
[null,2,"MS*MN-520; MAZDA CX-5 CD 150 AWD AT CHALLENGE; LETNIK 2014; ŠTEV.ŠASIJE: JMZKEN91800321192; 110 KW; 2191 CCM; REG.M.5; ZV: 32.460 Z DDV","ZAKONSKO PREDPISANE ZAVAROVALNE VSOTE","ZAVAROVALNA VSOTA                51.000€                  ",1,"DA",14,"1,2,3,4,5,6,7,8",0]
[null,3,"MS*AB-585; RENAULT ZOE ZEN R135; LETNIK 2020; ŠTEV.ŠASIJE: VF1AG000865256784; 100 KW, 0 CCM; BATERIJA: 295105928RF042052; REG.M.5; ZV: 34.790 Z DDV","ZAKONSKO PREDPISANE ZAVAROVALNE VSOTE","ZAVAROVALNA VSOTA                51.000€                  ",4,"DA",4,"1,2,3,4,5,6,7,8",0]
[null,"TOVORNA VOZILA"]
[null,4,"MS*DN-616; NISAN NAVARA DOUBLE CAR 2,5 dCI XE, LETNIK 2011; ŠTEV.ŠASIJE: VSKCVND40U0448817; 140 KW; 2488 CCM, NOSILNOST: 770 kg; REG.M.5, ZV: 20.484 BREZ DDV","ZAKONSKO PREDPISANE ZAVAROVALNE VSOTE","ZAVAROVALNA VSOTA                51.000€                  ",1,"DA",1,"1,3,4,5,6,7,8,",0]
[null,5,"MS*FE-456; MERCEDES-BENZ AROCS 1830 AK-20, LETNIK 2014; ŠTEV.ŠASIJE: WDB9642071L868292; 220 KW; 7698 CCM; NOSILNOST: 10.955 kg; REG.M: 2; ZV:101.900 BREZ DDV","ZAKONSKO PREDPISANE ZAVAROVALNE VSOTE","ZAVAROVALNA VSOTA                51.000€                  ",14,"DA",11,"1,3,4,5,6,7",0]
[null,6,"MS*FZ-319; RENAULT TRAFIC FURGON 1,6 dCI 125; LETNIK 2018; ŠTEV.ŠASIJE: VF1FL000358900562; 92 KW; 1598 CCM; NOSILNOST: 1.056 kg; REG.M: 3; ZV: 20.850,00 BREZ DDV","ZAKONSKO PREDPISANE ZAVAROVALNE VSOTE","ZAVAROVALNA VSOTA                51.000€                  ",12,"DA",12,"1,3,4,5,6,7,8,",0]
[null,7,"MS*NP-908; CITROEN JUMPER 35 L3 BlueHDI 163 DK; LETNIK 2018;  ŠTEV.ŠASIJE: VF7YC3MGC12H44743; 120 KW; 1997 CCM; NOSILNOST: 1.284 kg;  REG.M.: 7; ZV: 23.815,57 BREZ DDV","ZAKONSKO PREDPISANE ZAVAROVALNE VSOTE","ZAVAROVALNA VSOTA                51.000€                  ",4,"DA",4,"1,3,4,5,6,7,8,",0]
[null,8,"MS*KZ-095; FORD TRANSIT 350 2,4 TDCI; LETNIK 2011; ŠTEV.ŠASIJE: WF0FXXTTFFAB38047; 85 KW, 2402 CCM; NOSILNOST: 1.323 kg; REG.M.: 3; ZV: 18.783 BREZ DDV","ZAKONSKO PREDPISANE ZAVAROVALNE VSOTE","ZAVAROVALNA VSOTA                51.000€                  ",1,"DA",1,"1,3,4,5,6,7,8,",0]
[null,9,"MS*ZR-864; MERCEDES BENZ AROCS 2646 K-26; LETNIK 2019; ŠTEV.ŠASIJE: WDB96421410390732; 335 KW; 10677 CCM; NOSILNOST: 13.870 kg; REG.M.: 2; ZV: 122.200 BREZ DDV","ZAKONSKO PREDPISANE ZAVAROVALNE VSOTE","ZAVAROVALNA VSOTA                51.000€                  ",3,"DA",3,"1,3,4,5,6,7",0]
[null,10,"MS*RN-591; DACIA DOKKER VAN 1,5 DCI; LETNIK 2017; ŠTEV.ŠASIJE: UU18SDPJ557932472; 66 KW; 1461 CCM; NOSILNOST: 578 kg; REG.M.: 2; ZV: 10.248 BREZ DDV","ZAKONSKO PREDPISANE ZAVAROVALNE VSOTE","ZAVAROVALNA VSOTA                51.000€                  ",10,"DA",14,"1,3,4,5,6,7,8,",0]
[null,11,"MS*SN-401; IVECO 70 C 18; LETNIK 2017; ŠTEV.ŠASIJE: ZCFC170D705171023; 132 KW; 2998 CCM; NOSILNOST: 3.550 kg; REG.M.: 3; ZV: 41.900 BREZ DDV","ZAKONSKO PREDPISANE ZAVAROVALNE VSOTE","ZAVAROVALNA VSOTA                51.000€                  ",1,"DA",12,"1,3,4,5,6,7",0]
[null,12,"MS*SN-402; IVECO 35 C 15 D KESON; LETNIK 2017; ŠTEV.ŠASIJE:ZCFC435B305172841; 110 KW, 2998 CCM; NOSILNOST: 781 kg; REG.M.: 7; ZV: 30.990 BREZ DDV","ZAKONSKO PREDPISANE ZAVAROVALNE VSOTE","ZAVAROVALNA VSOTA                51.000€                  ",10,"DA",10,"1,3,4,5,6,7",0]
[null,13,"MS*ZE-283; FORD TRANSIT 2,4 TDCI; LETNIK 2008; ŠTEV.ŠASIJE: WF0NXXTTFN8K48933; 103 KW; 2402 CCM; NOSILNOST: 1.228 kg; REG.M.: 7; ZV: 21.811 BREZ DDV","ZAKONSKO PREDPISANE ZAVAROVALNE VSOTE","ZAVAROVALNA VSOTA                51.000€                  ",7,"DA",7,"1,3,4,5,6,7,8,",0]
[null,14,"MS*FZ-416; DACIA DOKKER VAN 1,6 16 V Sce LPG; LETNIK 2018; ŠTEV.ŠASIJE: UU18SDRV560758533; 75 KW; 1598 CCM; NOSINOST: 652 kg; REG.M.: 2; ZV: 8.590,16 BREZ DDV","ZAKONSKO PREDPISANE ZAVAROVALNE VSOTE","ZAVAROVALNA VSOTA                51.000€                  ",6,"DA",2,"1,3,4,5,6,7,8,",0]
[null,15,"MS*VS-698; DACIA DUSTER 4X4 1,5 dCI 110 comfort; LETNIK: 2019; ŠTEV.ŠASIJE: VF1HJD40163036772; 80 KW; 1461 CCM; NOSILNOST: 468 kg;  REG.M.: 4; ZV: 14.889,34 BREZ DDV","ZAKONSKO PREDPISANE ZAVAROVALNE VSOTE","ZAVAROVALNA VSOTA                51.000€                  ",8,"DA",8,"1,2,3,4,5,6,7,8",0]
[null,16,"MS*LS-226; RENAULT TRAFIC FURGON 1,6 dCI 120; LETNIK 2019; ŠTEV.ŠASIJE: VF1FL000362710295; 89 KW; 1598 CCM; NOSILNOST: 1.061 kg; REG.M.: 3; ZV: 20.050 BREZ DDV","ZAKONSKO PREDPISANE ZAVAROVALNE VSOTE","ZAVAROVALNA VSOTA                51.000€                  ",1,"DA",1,"1,3,4,5,6,7,8,",0]
[null,"VLEČNA VOZILA"]
[null,17,"JOHN DEER-748; LETNIK 2010; ŠTEV.ŠASIJE: M0X748B050443; 16,5 KW; 1116 ccm; NOSILNOST: 651 kg; ZV: 18.339 BREZ DDV","ZAKONSKO PREDPISANE ZAVAROVALNE VSOTE","ZAVAROVALNA VSOTA                51.000€                  ",4,"DA",4,"1,3,4,6,7",0]
[null,18,"MS*GR-64; JOHN DEER 6230; LETNIK 2012; ŠTE.ŠASIJE: 1L06230GACG738383; 70 KW; 4525 CCM; NOSILNOST: 3.300 kg; REG.M.: 2; ZV: 45.950 BREZ DDV","ZAKONSKO PREDPISANE ZAVAROVALNE VSOTE","ZAVAROVALNA VSOTA                51.000€                  ",1,"DA",1,"1,3,4,6,7",0]
[null,19,"KUBOTA BX 2350 4 WD; LETNIK 2019; ŠTEV.ŠASIJE: 00006470; 19 KW; 898 CCM; ZV: 34.929 BREZ DDV","ZAKONSKO PREDPISANE ZAVAROVALNE VSOTE","ZAVAROVALNA VSOTA                51.000€                  ",13,"DA",13,"1,3,4,6,7",0]
[null,"PRIKLOPNA VOZILA"]
[null,20,"MS*DS-873; EUROTRAILERS ERV 45H; LETNIK 2011; ŠTEV.ŠASIJE: TK9ERV45HBKEU3053; NOSILNOST: 1450 KG; ZV: 4.041 BREZ DDV","ZAKONSKO PREDPISANE ZAVAROVALNE VSOTE","ZAVAROVALNA VSOTA                51.000€                  ",5,"DA",5,"3, 4, 6",0]
[null,21,"MS*DT-201; AGADOS DONA 8624; LETNIK 2015; ŠTEV.ŠASIJE: TKXD59235FABA5258; NOSILNOST: 2155 KG; ZV: 6.300 BREZ DDV","ZAKONSKO PREDPISANE ZAVAROVALNE VSOTE","ZAVAROVALNA VSOTA                51.000€                  ",8,"DA",8,"3, 4, 6",0]
[null,22,"MS*KF-612; HUMBAUR; LETNIK 2008; ŠTEV.ŠASIJE: WHD35301580427790; NOSILNOST: 2800 KG; ZV: 4680 BREZ DDV","ZAKONSKO PREDPISANE ZAVAROVALNE VSOTE","ZAVAROVALNA VSOTA                51.000€                  ",1,"DA",1,"3, 4, 6",0]
[null,"DELOVNA VOZILA"]
[null,23,"JCB 4 CX 4X4X4 SITEMASTER  LETNIK 2010; ŠTEV. ŠASIJE: JCB4CXSMC91618128; REG.M.: 1; ZV: 71.364 BREZ DDV","ZAKONSKO PREDPISANE ZAVAROVALNE VSOTE","ZAVAROVALNA VSOTA                51.000€                  ",4,"DA",8,"1,3,4,6,7",0]
[]
[null,"1 – STEKLO, DIVJAD IN DOMAČE ŽIVALI: KRITA JE ŠKODA ZARADI RAZBITJA ALI POŠKODOVANJA STANDARDNO VGRAJENIH STEKEL (RAZEN SVETLOBNIH TELES IN OGLEDAL) ",null,null,null,null,null,null,"SKUPAJ PREMIJA ",{"$f":"J10+J11+J12+J14+J15+J16+J17+J18+J19+J20+J21+J22+J23+J24+J25+J26+J28+J29+J30+J32+J33+J34+J36","v":0}]
[null,"NA VOZILU TER ŠKODA NA VOZILU, KI NASTANE Z NEPOSREDNIM DOTIKOM DIVJADI ALI DOMAČIH ŽIVALI; ",null,null,null,null,null,null,"POPUST "]
[null,null,null,null,null,null,null,null,"PREMIJA",{"$f":"J38-J39","v":0}]
[null,"2  – PARKIRIŠČE: KRITA JE ŠKODA ZARADI POŠKODOVANJA ALI UNIČENJA PARKIRANEGA ALI USTAVLJENEGA OSEBNEGA VOZILA, KI NASTANE Z NEPOSREDNIM DOTIKOM NEZNANEGA VOZILA ",null,null,null,null,null,null,"8,5% DPZP",{"$f":"J40*0.085","v":0}]
[null,"TER ŠKODA, KI NASTANE ZARADI STREŠNIH SNEŽNIH PLAZOV, LEDENIH SVEČ ALI LEDENIH TVORB, KI PADEJO S STAVB; ",null,null,null,null,null,null,"PREMIJA Z DPZP",{"$f":"J40*1.085","v":0}]
[]
[null,"3   –  POŽARNE NEVARNOSTI IN NARAVNE NESREČE * VELJA ZA ZAVAROVALNICE, KATERE NIMAJO VKLJUČENIH TEH RIZIKOV ŽE V OSNOVNO KASKO ZAVAROVANJE"]
[]
[null,"4   – ZUNANJA SVETLOBNA TELESA IN OGLEDALA: KRITA JE ŠKODA NA VOZILU ZARADI RAZBITJA ALI POŠKODOVANJA VGRAJENIH ZUNANJIH SVETLOBNIH TELES IN OGLEDAL NA VOZILU "]
[]
[null,"5– KRAJA: KRITA JE ŠKODA, KI JE POSLEDICA NAVADNE, VLOMSKE IN ROPARSKE TATVINE, ROPA TER PROTIPRAVNEGA ODVZEMA VOZILA (TO VELJA V PRIMERU TATVINE VOZILA V CELOTI "]
[null,"IN ŠKODE KOT POSLEDICE PROMETNE NESREČE ALI POGONSKE OKVARE, NASTALE PO TATVINI, ROPU ALI PROTIPRAVNEM ODVZEMU VOZILA Z NAMENOM, DA SE VOZILO UPORABI) "]
[null,"TER STROŠKI NAJEMA NADOMESTNEGA VOZILA ( VELJA LE ZA OSEBNA VOZILA) DO DNE IZPLAČILA ZAVAROVALNINE PO TEJ KOMBINACIJI (NAJEM NAJVEČ DO 30 DNI) IN STROŠKI ZAMENJAVE "]
[null,"KLJUČAVNIC V PRIMERU TATVINE ALI IZGUBE AVTOMOBILSKIH KLJUČEV"]
[]
[null,"6- ZAVAROVANJE PRAVNE ZAŠČITE ZARADI UPORABE MOTORNEGA VOZILA; ZV 4.000 EUR ALI VEČ"]
[]
[null,"7- NEZGODNO ZAVAROVANJE VOZNIKOV, POTNIKOV IN DELAVCEV  PRI UPRAVLJANJU IN VOŽNJI Z MOTORNIMI IN DRUGIMI VOZILI;     ZV SMRT   20.000€  ALI VEČ                ZV INVALID.  40.000€  ALI VEČ"]
[]
[null,"8- AVTOMOBILSKA ASISTENCA"]

{"sheet":"REKAPITULACIJA","index":7,"n_rows":18,"n_cols":4,"rows_kept":18,"cut":false,"hidden":false,"merged":[[5,0,5,2]]}
["ČISTA NARAVA D.O.O."]
["TEŠANOVCI 20"]
["9226 MORAVSKE TOPLICE"]
[]
[]
["REKAPITULACIJA"]
[]
["SKUPAJ PREMIJA ",null,null,{"$f":"POŽAR.1.!M27+'STR 2.'!I17+'RAČUNALNIKI 3.'!H12+'VLOMSKO ZAVAROVANJE  4.'!H12+'ODG 5.'!H12+'ODG 5.'!H12+'POKLICNA ODG. 6'!H11+'VOZILA 7.'!J38","v":0}]
["POPUST ",null,null,{"$f":"POŽAR.1.!M28+'STR 2.'!I18+'RAČUNALNIKI 3.'!H13+'VLOMSKO ZAVAROVANJE  4.'!H13+'ODG 5.'!H13+'ODG 5.'!H13+'POKLICNA ODG. 6'!H12+'VOZILA 7.'!J39","v":0}]
["PREMIJA",null,null,{"$f":"POŽAR.1.!M29+'STR 2.'!I19+'RAČUNALNIKI 3.'!H14+'VLOMSKO ZAVAROVANJE  4.'!H14+'ODG 5.'!H14+'ODG 5.'!H14+'POKLICNA ODG. 6'!H13+'VOZILA 7.'!J40","v":0}]
["8,5% DPZP",null,null,{"$f":"POŽAR.1.!M30+'STR 2.'!I20+'RAČUNALNIKI 3.'!H15+'VLOMSKO ZAVAROVANJE  4.'!H15+'ODG 5.'!H15+'ODG 5.'!H15+'POKLICNA ODG. 6'!H14+'VOZILA 7.'!J41","v":0}]
["PREMIJA Z DPZP",null,null,{"$f":"POŽAR.1.!M31+'STR 2.'!I21+'RAČUNALNIKI 3.'!H16+'VLOMSKO ZAVAROVANJE  4.'!H16+'ODG 5.'!H16+'ODG 5.'!H16+'POKLICNA ODG. 6'!H15+'VOZILA 7.'!J42","v":0}]
[]
[]
[]
[]
["Datum:",null,null,"PONUDNIK:"]
[null,null,null,"(žig in podpis pooblaščene osebe)"]

{"sheet":"Sheet2","index":8,"n_rows":0,"n_cols":0,"rows_kept":0,"cut":false,"hidden":false,"merged":[]}